Cogmind - Beta 13 @@@ ROGUE MODE // 2024.03.24 @ 16:13:46 Player: f_ Result: Destroyed by G-47 Trooper with Particle Gun Performance ------------- Evolutions (2) 1000 Regions Visited (6) 1200 Robots Destroyed (114) 570 Value Destroyed (2615) 2615 Prototype IDs (7) 140 Alien Tech Used (0) 0 Bonus (331) 331 TOTAL SCORE: 5856 Bonus ------- High Alert Combat Kills 141 Entered Garrisons 200 Friendly Fire -10 Cogmind --------- Core Integrity 0/550 Matter 96/300 Energy 20/100 System Corruption 9% Temperature Cool (9) Movement Core (750) Ox14 Location -8/Garrison Parts ------- > --- POWER (1) -------- (None) > --- PROPULSION (2) --- (None) > --- UTILITY (6) ------ High-capacity Storage Unit Hacking Suite > --- WEAPON (2) ------- Makeshift Axe > --- INVENTORY (20) --- Nuclear Core Light Treads Aluminum Leg Large Storage Unit Experimental Sensor Array Particle Charger Kinecellerator Light Armor Plating Hardened Medium Armor Plating Hardened Medium Armor Plating Improved Light Armor Plating Insulated Plating Hardlight Generator Hardlight Generator Beam Rifle Beamcaster Compact Ion Cannon Makeshift Hammer Spear Peak State ------------ > --- POWER ------------ Nuclear Core > --- PROPULSION ------- Compact Wheel Compact Wheel > --- UTILITY ---------- High-capacity Storage Unit Experimental Sensor Array Improved Light Armor Plating Improved Light Armor Plating Makeshift Kinetic Plating Hacking Suite > --- WEAPON ----------- Makeshift Hammer Spear > --- INVENTORY -------- Deuterium Engine Nuclear Core Nuclear Core Compact Wheel Improved Heat Sink Medium Storage Unit Advanced Weight Redist. System Recoil Stabilizer Kinecellerator Kinecellerator Weapon Shielding Improved Light Armor Plating Component Analysis Suite EM Shotgun Subdweller Laser Beamcaster Battle Cannon Subdweller Shrapnel Launcher Multitool Makeshift Axe [Rating: 41] Favorites ----------- Power Deuterium Engine Engine Deuterium Engine Power Core Nuclear Core Propulsion Compact Wheel Leg Aluminum Leg Wheel Compact Wheel Flight Unit Improved Flight Unit Utility High-capacity Storage Unit Device Experimental Sensor Array Storage High-capacity Storage Unit Processor Improved Signal Interpreter Hackware Hacking Suite Protection Improved Light Armor Plating Weapon Makeshift Hammer Energy Gun Subdweller Laser Energy Cannon Compact Ion Cannon Ballistic Gun Light Assault Rifle Ballistic Cannon Battle Cannon Launcher Improved Grenade Launcher Special Weapon Multitool Impact Weapon Makeshift Hammer Slashing Weapon Makeshift Axe Piercing Weapon Spear Special Melee Weapon Datajack Build | -11 -10 -10 -10 -8 -8 -8 ------- Run | Yrd Mat Min Sub Mat Sto Gar Slots Evolved 4 | . . . . 4 . . Power . | . . . . . . . Propulsion . | . . . . . . . Utility 4 | . . . . 4 . . Weapon . | . . . . . . . Parts Attached 137 | 6 9 8 7 68 24 15 Power 13 | 1 3 . 1 6 1 1 Engine 12 | 1 3 . 1 5 1 1 Core 1 | . . . . 1 . . Reactor . | . . . . . . . Propulsion 21 | 2 2 . 1 11 2 3 Treads . | . . . . . . . Leg 3 | . . . . . . 3 Wheel 17 | 2 2 . 1 10 2 . Hover . | . . . . . . . Flight 1 | . . . . 1 . . Utility 37 | 1 1 2 . 16 10 7 Device 16 | . . 1 . 6 5 4 Storage 2 | 1 . 1 . . . . Processor 2 | . . . . 2 . . Hackware 2 | . . . . 1 1 . Protection 15 | . 1 . . 7 4 3 Artifact . | . . . . . . . Weapon 66 | 2 3 6 5 35 11 4 Energy Gun 6 | . . . . 5 1 . Energy Cannon 3 | . . . . . 3 . Ballistic Gun 7 | 2 3 1 . 1 . . Ballistic Cannon 2 | . . . . 2 . . Launcher 8 | . . . . 5 1 2 Special Weapon 6 | . . . 2 4 . . Impact Weapon 18 | . . 4 1 9 3 1 Slashing Weapon 8 | . . 1 2 4 . 1 Piercing Weapon 7 | . . . . 5 2 . Special Melee Weapon 1 | . . . . . 1 . Unidentified Prototypes 7 | . . 1 . 4 2 . Parts Lost 22 | . 4 . 2 2 1 13 Power 4 | . 1 . 1 . . 2 Propulsion 9 | . 2 . 1 2 . 4 Utility 6 | . . . . . . 6 Weapon 3 | . 1 . . . 1 1 Highest Loss Streak 9 | . 2 . 2 2 1 9 To Critical Strikes . | . . . . . . . Average Slot Usage (%) 96 | . 81 100 98 98 99 96 Engine 7 | . 13 14 13 3 5 8 Core 2 | . . . . 5 3 . Leg 2 | . . . . . . 12 Wheel 16 | . 21 28 27 17 18 3 Device 14 | . . 11 14 15 16 17 Storage 10 | . 14 14 14 9 9 9 Processor 5 | . . . . 5 9 9 Hackware 5 | . . . . 6 9 9 Protection 10 | . 4 2 . 16 10 9 Ballistic Gun 2 | . 27 2 . . . . Launcher 2 | . . . . 1 . 8 Special Weapon 1 | . . . . 2 . . Impact Weapon 6 | . . 25 18 4 6 2 Slashing Weapon 4 | . . . 8 2 8 6 Piercing Weapon 2 | . . . . 5 . . Naked Turns . | . . . . . . . Heaviest Build 75 | 10 12 49 52 73 70 75 Greatest Support 45 | 32 32 20 26 45 32 26 Greatest Overweight (x) 6 | 2 3 2 4 3 2 6 Average Overweight (x) 1 | . . 1 1 1 1 2 Largest Inventory Capacity 20 | 8 8 20 20 20 20 20 Average Capacity 18 | 7 8 18 20 20 20 20 Most Carried 20 | 2 5 11 20 20 20 20 Average Carried 16 | . 2 9 15 19 19 18 Final Capacity 20 | 8 8 20 20 20 20 20 Final Carried 20 | 2 4 11 20 19 20 19 Class Distribution -------------------- 45% | Scavenger-Mutant 43% | Mutant 10% | Derelict-Mutant Dominant Class ---------------- Mutant | -10/Materials Mutant | -10/Mines Mutant | -10/Subcaves Mutant | -8/Materials Scavenger-Mutant | -8/Storage Scavenger-Mutant | -8/Garrison Resources | -11 -10 -10 -10 -8 -8 -8 ----------- Run | Yrd Mat Min Sub Mat Sto Gar Matter Collected 2190 | 145 126 265 70 981 360 243 Remotely . | . . . . . . . Salvage Created 3719 | . 282 258 50 1997 814 318 Parts 207 | . 27 3 1 118 40 18 Haulers Intercepted 7 | . 1 . . 4 2 . Recyclers Shooed 1 | . . . . . 1 . Parts Field Recycled . | . . . . . . . Retrieved Matter . | . . . . . . . Parts Self-Destructed 12 | . . . 12 . . . Prevented . | . . . . . . . Kills | -11 -10 -10 -10 -8 -8 -8 ------- Run | Yrd Mat Min Sub Mat Sto Gar Combat Hostiles Destroyed 71 | . 11 1 1 30 11 17 Melee 42 | . . . 1 25 11 5 Guns 15 | . 11 1 . 3 . . Cannons 1 | . . . . . . 1 AOE 10 | . . . . 1 . 9 Classes Destroyed 14 | . 5 3 1 5 . . Worker 9 | . 1 . . 7 1 . Builder 6 | . . 2 . 4 . . Tunneler 4 | . . 2 . 2 . . Hauler 7 | . 1 . . 4 2 . Recycler 8 | . . 2 . 5 1 . Mechanic 2 | . 1 . . . 1 . Operator 3 | . . . . 2 1 . Watcher 4 | . . . . 4 . . Swarmer 31 | . 9 1 . 12 . 9 Grunt 24 | . 2 . . 9 6 7 Brawler 2 | . . . . 2 . . Duelist 1 | . . . . 1 . . Sentry 12 | . . . . 6 5 1 Subdweller 1 | . . . 1 . . . Best Kill Streak 7 | . 4 2 1 4 3 7 Combat Bots Only 7 | . 4 1 1 4 3 7 Max Kills in Single Turn 2 | . 2 1 1 2 1 1 Gunslinging 1 | . 1 . . . . . Exploded 1 | . . . . 1 . 1 Melee 1 | . . . 1 1 1 1 Uniques/NPCs Destroyed . | . . . . . . . Combat | -11 -10 -10 -10 -8 -8 -8 -------- Run | Yrd Mat Min Sub Mat Sto Gar Hostile Shots Fired 394 | . 64 . 22 95 41 172 Missed 87 | . 15 . 4 25 10 33 Damage Taken 3186 | . 511 . 222 936 384 1133 Core 782 | . 115 . 103 184 74 306 Absorbed by Shields 476 | . . . . . 68 408 Redirected to Shielding 9 | . . . . 9 . . Ignored by Resistances 84 | . . . . 43 22 19 Regen/Repaired (Parts) 125 | . . . . 101 24 . Core Remaining (%) 56 | 100 . . 12 . . . Volleys Fired 115 | . 58 5 . 32 6 14 Largest 2 | . 2 1 . 2 1 2 Hottest 130 | . 40 20 . 115 90 130 Shots Fired 179 | . 114 5 . 37 6 17 Gun 132 | . 114 5 . 12 1 . Cannon 15 | . . . . 6 5 4 Launcher 25 | . . . . 12 . 13 Special 7 | . . . . 7 . . Kinetic 149 | . 114 5 . 18 . 12 Thermal 29 | . . . . 19 6 4 Explosive 1 | . . . . . . 1 Electromagnetic . | . . . . . . . Robot Hit Streak 10 | . 10 1 . 6 4 4 Robot Miss Streak 5 | . 5 5 . 4 1 3 Penetration Max . | . . . . . . . Secondary Targets 3 | . 3 . . . . . Max Gunslinging Chain 1 | . 1 . . . . . Shots Hit Robots 271 | . 63 8 8 107 53 32 Core Hits 124 | . 23 1 1 60 18 21 Critical Kills 3 | . 1 . . 1 . 1 Critical Parts Destroyed 7 | . 1 2 . 1 2 1 Critical Strikes 24 | . 2 2 . 9 8 3 Destroy 3 | . 2 1 . . . . Blast 1 | . . . . 1 . . Smash 7 | . . 1 . 2 2 2 Sever 10 | . . . . 3 6 1 Impale 3 | . . . . 3 . . Melee Attacks 380 | . . 16 18 165 106 75 Impact 119 | . . 16 9 33 31 30 Slashing 165 | . . . 9 43 68 45 Piercing 94 | . . . . 89 5 . Sneak Attacks 35 | . . 6 . 23 6 . Combat Hostiles . | . . . . . . . Follow-up Attacks 23 | . . . 1 15 7 . Damage Inflicted 10211 | . 611 680 314 4714 1906 1986 Guns 656 | . 521 29 . 106 . . Cannons 250 | . . . . 78 92 80 Explosions 1574 | . 90 . . 606 . 878 Melee 7687 | . . 651 314 3880 1814 1028 Ramming . | . . . . . . . Kinetic 2094 | . 521 29 . 684 . 860 Thermal 412 | . 90 . . 150 92 80 Explosive 18 | . . . . . . 18 Electromagnetic . | . . . . . . . Impact 2795 | . . 651 62 1325 186 571 Slashing 3244 | . . . 252 1052 1483 457 Piercing 1648 | . . . . 1503 145 . Highest Corruption 9 | . 1 1 1 8 9 9 Average Corruption 6 | . 1 1 1 7 8 9 Corruption Purged . | . . . . . . . Corruption Blocked . | . . . . . . . Effects 102 | . 1 3 5 12 36 45 Message Errors 20 | . . 1 . 2 6 11 Matter Fused 21 | . . 1 1 . 9 10 Heat Flow Errors 16 | . . . . 2 4 10 Energy Discharges 17 | . . . . 2 9 6 Parts Rejected 2 | . . . . . . 2 Data Loss (minor) 16 | . 1 1 4 2 6 2 Data Loss (major) 3 | . . . . 1 . 2 Misfires 1 | . . . . . 1 . Alerts 4 | . . . . 2 . 2 Weapon Failures 2 | . . . . 1 1 . Overload Shots . | . . . . . . . Overflow Damage 1448 | . 29 506 . 536 170 207 Projectiles 2 | . . . . 2 . . Explosions 85 | . 29 . . 33 . 23 Melee 1361 | . . 506 . 501 170 184 Knockbacks 10 | . . 3 . 4 . 3 Impact 9 | . . 3 . 3 . 3 Kinetic . | . . . . . . . Secondary 1 | . . . . 1 . . Self-Inflicted Damage 247 | . 86 . . 121 . 40 Shots 6 | . 1 . . 4 . 1 Rammed . | . . . . . . . Targets Rammed . | . . . . . . . Kicked . | . . . . . . . Crushed . | . . . . . . . Highest Temperature 269 | . 12 . . 252 242 269 Average Temperature 88 | . 8 . . 81 72 110 Received Heat Transfer 1037 | . 78 . 72 333 177 377 Siege Activations . | . . . . . . . Robots Corrupted . | . . . . . . . Combat Hostiles . | . . . . . . . Parts Fried 22 | . . 14 . 7 . 1 Impact Corruptions 36 | . . 15 . 12 2 7 Robots Melted . | . . . . . . . Combat Hostiles . | . . . . . . . Parts Melted . | . . . . . . . Heat Transferred 658 | . 100 . . 336 111 111 Parts Sabotaged . | . . . . . . . Parts Stolen . | . . . . . . . Parts Stripped . | . . . . . . . Power Chain Reactions . | . . . . . . . Alert | -11 -10 -10 -10 -8 -8 -8 ------- Run | Yrd Mat Min Sub Mat Sto Gar Peak Influence 785 | . 392 125 . 562 482 785 Initial 237 | . . 74 . 39 237 189 Average 357 | . 221 102 . 302 339 590 Maximum Alert Level 3 | . 1 . . 2 2 3 Low Security (%) 21 | 100 40 100 . 25 . 4 Level 1 44 | . 59 . . 53 81 9 Level 2 30 | . . . . 21 18 75 Level 3 2 | . . . . . . 11 Level 4 . | . . . . . . . Level 5 . | . . . . . . . High Security . | . . . . . . . Max Security . | . . . . . . . Squads Dispatched 10 | . 1 . . 6 3 . Investigation 3 | . 1 . . 1 1 . Extermination . | . . . . . . . Reinforcement 3 | . . . . 2 1 . Assault 1 | . . . . 1 . . Garrison 3 | . . . . 2 1 . Intercept . | . . . . . . . Searches Triggered . | . . . . . . . Construction Impeded 1 | . . . . 1 . . Haulers Reinforced . | . . . . . . . Active Scanning Responses . | . . . . . . . Cargo Convoy Interrupts . | . . . . . . . Stealth | -11 -10 -10 -10 -8 -8 -8 --------- Run | Yrd Mat Min Sub Mat Sto Gar Distress Signals 4 | . 1 . . 2 1 . Communications Jammed . | . . . . . . . Distress Signals . | . . . . . . . Times Spotted 113 | . 20 3 7 45 14 24 Peak Tracking Total 6 | . 6 3 4 4 3 6 Tactical Retreats 8 | . . . 1 6 . 1 Traps | -11 -10 -10 -10 -8 -8 -8 ------- Run | Yrd Mat Min Sub Mat Sto Gar Traps Triggered 5 | . 1 . . 1 . 3 Indirectly . | . . . . . . . Trap Hack Attempts . | . . . . . . . Triggered . | . . . . . . . Disarmed . | . . . . . . . Reprogrammed . | . . . . . . . Reused . | . . . . . . . Traps Extracted . | . . . . . . . Installed . | . . . . . . . Triggered . | . . . . . . . Most Traps Carried 1 | . . . 1 . . . Machines | -11 -10 -10 -10 -8 -8 -8 ---------- Run | Yrd Mat Min Sub Mat Sto Gar Machines Disabled 10 | . 2 . . 6 . 2 Max in Single Turn 2 | . 2 . . 1 . 2 Garrison Access 1 | . . . . 1 . . Machines Repaired . | . . . . . . . Machines Dismantled . | . . . . . . . Machines Sabotaged . | . . . . . . . Overloaded Fab Kills . | . . . . . . . Hacking | -11 -10 -10 -10 -8 -8 -8 --------- Run | Yrd Mat Min Sub Mat Sto Gar Machines Accessed 28 | . 5 . 1 10 9 3 Terminals 24 | . 5 . . 9 7 3 Fabricators . | . . . . . . . Repair Stations 2 | . . . . 1 1 . Recycling Units . | . . . . . . . Scanalyzers . | . . . . . . . Garrison Access 1 | . . . . . 1 . Total Hacks 66 | . 11 . 3 27 18 7 Successful 40 | . 7 . 3 17 12 1 Failed 26 | . 4 . . 10 6 6 Catastrophic 1 | . . . . 1 . . Database Lockouts . | . . . . . . . Manual 1 | . . . . . 1 . Terminals 57 | . 11 . . 25 14 7 Fabricators . | . . . . . . . Repair Stations 5 | . . . . 2 3 . Recycling Units . | . . . . . . . Scanalyzers . | . . . . . . . Garrison Access 1 | . . . . . 1 . Terminal Hacks 35 | . 7 . 3 15 9 1 Record 3 | . . . 3 . . . Open Door 4 | . . . . . 3 1 Branch Access Points 2 | . 1 . . 1 . . Emergency Access Points 1 | . . . . 1 . . Terminal Index 1 | . . . . 1 . . Scanalyzer Index 1 | . 1 . . . . . Alert Level 13 | . 4 . . 6 3 . Unreport Threat 3 | . . . . 3 . . Locate Traps 1 | . . . . . 1 . Maintenance Status 1 | . . . . 1 . . Investigation Status 3 | . 1 . . 2 . . Assault Status 1 | . . . . . 1 . Zone Layout 1 | . . . . . 1 . Fabricator Hacks . | . . . . . . . Repair Station Hacks 4 | . . . . 2 2 . Scan Component 2 | . . . . 1 1 . Repair 2 | . . . . 1 1 . Recycling Unit Hacks . | . . . . . . . Scanalyzer . | . . . . . . . Garrison Access Hacks 1 | . . . . . 1 . Unlock Access 1 | . . . . . 1 . Unauthorized Hacks . | . . . . . . . Terminals . | . . . . . . . Fabricators . | . . . . . . . Repair Stations . | . . . . . . . Recycling Units . | . . . . . . . Scanalyzers . | . . . . . . . Garrison Access . | . . . . . . . Data Cores Recovered . | . . . . . . . Used . | . . . . . . . Hacking Detections 18 | . 3 . . 7 5 3 Full Trace Events 3 | . 1 . . 1 1 . Feedback Events 2 | . 1 . . . 1 . Corruption 2 | . 1 . . . 1 . Feedback Blocked . | . . . . . . . Robot Schematics Acquired . | . . . . . . . Robots Built . | . . . . . . . Authchips . | . . . . . . . Time . | . . . . . . . Total Robot Build Rating . | . . . . . . . Part Schematics Acquired . | . . . . . . . Parts Built . | . . . . . . . Authchips . | . . . . . . . Time . | . . . . . . . Total Part Build Rating . | . . . . . . . Parts Repaired 2 | . . . . 1 1 . Time 152 | . . . . 44 108 . Parts Recycled . | . . . . . . . Recycled Matter . | . . . . . . . Retrieved Matter . | . . . . . . . Retrieved Components . | . . . . . . . Parts Scanalyzed . | . . . . . . . Part Schematics Acquired . | . . . . . . . Parts Damaged . | . . . . . . . Bothacking | -11 -10 -10 -10 -8 -8 -8 ------------ Run | Yrd Mat Min Sub Mat Sto Gar Used RIF Installer . | . . . . . . . Robots Hacked 1 | . . . . . 1 . Non-combat 1 | . . . . . 1 . Combat . | . . . . . . . Robot Hacks Applied 2 | . . . . . 2 . no_distress 1 | . . . . . 1 . find_station 1 | . . . . . 1 . Relay Couplers Released 2 | . . . . 2 . . Machine Destruction 2 | . . . . 2 . . Fabnet Peak Effective % . | . . . . . . . Robots Rewired . | . . . . . . . Allies Hacked . | . . . . . . . Hacks Repelled . | . . . . . . . Allies | -11 -10 -10 -10 -8 -8 -8 -------- Run | Yrd Mat Min Sub Mat Sto Gar Total Allies 1 | . . . . . . 1 Largest Group 1 | . . . . . . 1 Highest-Rated Group 31 | . . . . . . 31 Highest-Rated Ally 31 | . . . . . . 31 Total Orders 8 | . . . . . 4 4 ROAM 2 | . . . . . 1 1 EXPLORE 6 | . . . . . 3 3 Ally Attacks 3 | . . . . . . 3 Total Damage 21 | . . . . . . 21 Kills . | . . . . . . . Allies Corrupted . | . . . . . . . Allies Melted . | . . . . . . . Intel | -11 -10 -10 -10 -8 -8 -8 ------- Run | Yrd Mat Min Sub Mat Sto Gar Robot Analysis Total . | . . . . . . . Derelict Logs Recovered 1 | . . 1 . . . . Drone Launches 9 | . . . . . 5 4 Drone Recoveries 7 | . . . . . 5 2 Exploration | -11 -10 -10 -10 -8 -8 -8 ------------- Run | Yrd Mat Min Sub Mat Sto Gar Turns Passed 6215 | 65 499 309 616 2359 1006 1361 Spaces Moved 3359 | 50 357 213 510 1349 445 435 Core 15 | 12 3 . . . . . Treads . | . . . . . . . Legs 315 | . . . . . . 315 Wheels 3029 | 38 354 213 510 1349 445 120 Hover . | . . . . . . . Flight . | . . . . . . . Fastest Speed 50 | 50 80 80 105 105 105 120 Average Speed 126 | 103 90 104 109 114 117 234 Slowest Speed 540 | 150 200 110 140 130 120 540 Overloaded Moves . | . . . . . . . Propulsion Burnouts . | . . . . . . . Robots Hopped . | . . . . . . . Cave-ins Triggered . | . . . . . . . Exploration Rate (%) 42 | 3 42 38 29 75 41 70 Regions Visited 6 Branch Regions 3 Pre-discovered Areas . | . . . . . . . Known Exits Taken 3 | . 1 . . 1 1 . Unknown Exits Taken 3 | 1 . 1 1 . . . Scrap Searched 4 | . . 1 3 . . . Spaces Dug 75 | . . 2 2 35 20 16 Terrain Destroyed 337 | . 20 2 2 178 22 113 Melee 75 | . . 2 2 35 20 16 Projectile 4 | . . . . 2 2 . AOE 258 | . 20 . . 141 . 97 Terrain Rammed . | . . . . . . . Walls Destroyed . | . . . . . . . Machines Disabled . | . . . . . . . Actions | -11 -10 -10 -10 -8 -8 -8 --------- Run | Yrd Mat Min Sub Mat Sto Gar Total 4766 | 63 441 277 546 1933 827 679 Wait 644 | . 5 31 3 253 234 118 Move 3353 | 49 356 212 509 1348 444 435 Hop . | . . . . . . . Pick Up 96 | 8 10 8 11 40 13 6 Fast Attach 8 | . . . . 5 2 1 Attach 35 | 6 5 . 2 11 4 7 Detach . | . . . . . . . Swap 94 | . 4 8 5 52 18 7 Drop 64 | . 3 1 . 45 14 1 Fire 115 | . 58 5 . 32 6 14 Melee 336 | . . 12 16 141 92 75 Ram . | . . . . . . . Kick . | . . . . . . . Crush . | . . . . . . . Escape Stasis 15 | . . . . . . 15 Rewire . | . . . . . . . Trap . | . . . . . . . Miscellaneous 6 | . . . . 6 . . Route ------- -11/Scrapyard -10/Materials (discovered 2 exits: *Min x2) -10/Mines (discovered 2 exits: [*Mat] / *Sub) -10/Subcaves -8/Materials (discovered 4 exits: *Fac x2 / *Sto x2) -8/Storage (discovered 2 exits: *Rec / Gar) -8/Garrison (discovered 1 exit: *Fac) History --------- Turn | Location | Event 11 | -11/Scrapyard | Discovered new exit (range 15) 66 | -11/Scrapyard | Entered Materials 316 | -10/Materials | Build established: Mutant 376 | -10/Materials | Discovered new exit (range 13) 462 | -10/Materials | Identified exit to Mines 565 | -10/Materials | Entered Mines 582 | -10/Mines | A weapon hastily lodged in a ceiling crevice suddenly fell to the ground 613 | -10/Mines | Met a Derelict bent on vengeance 620 | -10/Mines | Found a damaged Exp. Sensor Array with a note attached 623 | -10/Mines | Found Prototype Device 624 | -10/Mines | Identified Exp. Sensor Array 750 | -10/Mines | Learned Materials terminal intel 813 | -10/Mines | Discovered new exit (range 7) 871 | -10/Mines | Discovered new exit (range 3) 874 | -10/Mines | Entered Subcaves 1011 | -10/Subcaves | Shifting Twisted Machinery released Piercing Trap 1013 | -10/Subcaves | Shifting Twisted Machinery released Mak. Kinetic Plating 1220 | -10/Subcaves | Visited Clippyterm 1223 | -10/Subcaves | Learned Research machine intel 1332 | -10/Subcaves | Core integrity fell below 50% 1445 | -10/Subcaves | Discovered new exit (range 12) 1487 | -10/Subcaves | Core integrity fell below 20% 1490 | -10/Subcaves | Entered Materials 1490 | -8/Materials | Evolved 4 slots: Utility x4 1491 | -8/Materials | Loaded intel: 12 terminal locations 1534 | -8/Materials | Discovered new exit (range 14) 1594 | -8/Materials | Identified exit to Storage 1790 | -8/Materials | Build established: Derelict-Mutant 2481 | -8/Materials | Build established: Mutant 2516 | -8/Materials | Discovered new exit (range 6) 2521 | -8/Materials | Identified exit to Factory 2903 | -8/Materials | Build established: Scavenger-Mutant 3599 | -8/Materials | Garrison activated, responded to threat 3683 | -8/Materials | Discovered exit to Factory (range 4) 3693 | -8/Materials | Build established: Mutant 3709 | -8/Materials | Repaired Mak. Hammer? 3849 | -8/Materials | Entered Storage 4169 | -8/Storage | Repaired Exp. Sensor Array? 4355 | -8/Storage | Garrison activated, responded to threat 4391 | -8/Storage | Build established: Scavenger-Mutant 4553 | -8/Storage | Discovered new exit (range 9) 4568 | -8/Storage | Identified exit to Recycling 4799 | -8/Storage | Identified exit to Garrison 4855 | -8/Storage | Entered Garrison 4884 | -8/Garrison | Triggered checkpoint 4968 | -8/Garrison | Triggered checkpoint 4968 | -8/Garrison | Triggered checkpoint 5028 | -8/Garrison | Triggered checkpoint 5045 | -8/Garrison | Core integrity fell below 50% 5063 | -8/Garrison | Destroyed 7 combat bots 5097 | -8/Garrison | Lost 3 parts (1p1n1u) 5192 | -8/Garrison | Triggered checkpoint 5641 | -8/Garrison | Discovered exit to Factory (range 3) 5763 | -8/Garrison | Rescued a captive Derelict 6182 | -8/Garrison | Triggered checkpoint 6212 | -8/Garrison | Core integrity fell below 20% 6216 | -8/Garrison | Destroyed by G-47 Trooper with Particle Gun Last Messages --------------- 06183_ Imp. Light Armor Plating destroyed. 06189_ WN-1K6(g) heat short circuits Carbon-fiber Leg. 06190_ WN-1K6(g) heat damages Imp. Heat Sink, Lgt. Angular Momentum Engine, Imp. Heat Sink, Broken Carbon-fiber Leg. 06190_ WN-1K6(g) suffers critical hit (Burn). 06191_ WN-1K6(g) destroyed. 06192_ System corrupted: Heat flow error (+263). 06194_ G-50 Soldier Carbon-fiber Leg severed. 06196_ Destroyed Lgt. Angular Momentum Engine. 06197_ Deuterium Engine destroyed. 06199_ Imp. Grenade Launcher destroyed. 06200_ Carbon-fiber Leg destroyed. 06203_ Aluminum Leg destroyed. 06203_ Critical hit (Burn: +28). 06207_ Imp. Sensor Array destroyed. 06211_ Hrd. Medium Armor Plating destroyed. 06213_ Imp. Signal Interpreter destroyed. 06215_ Hardlight Generator destroyed. Map ----- +----------------------------------------------------+ | ?????????????????????????????????????????????????? | | ?????????????????????????????????????????????????? | | ?????????????????????????????????????????????????? | | ?????????????????????????????????????????????????? | | ?????????????????????????????????????????????????? | | ?????????????????????????????????????????????????? | | ?????????????????????????????????????????????????? | | ?????????????????????????????????????????????????? | | ?????????????????????????????????????????????????? | | ?????????????????????????????????????????????????? | | ??????????????????????? ???????????????????????? | | ??????????????????????# ???????????????????????? | | ??????????????????????# #??????????????????????? | | ??????????????????????# #??????????????????????? | | ??????????????????????# #??????????????????????? | | ??????????????????????# #??????????????????????? | | ??????????????????????# #??????????????????????? | | ??????????????????????# #??????????????????????? | | ??????????????????????# #??????????????????????? | | ??????????????????????# #???????????????????###? | | ??????????????????????# #???????????????????# ? | | ??????????????????????# #???????????????????# #? | | ??????????????????????# #???????????????????# #? | | ??????????????????????# #?????????????????###"## | | ??????????????????????# #?????????????????# | | ???????????############ @########??????????#* = | | ???????? g =g #??????# = ] | | ???????? g g #??????# ## | | ?????????# ##### ## #### #### #??????# #? | | ?????????????????# ??# #????#???????????## ## | | ?????????????????##???# #????????????????#" "# | | ??????????????????????# #????????????????#" " | | ??????????????????????# g#???????????######" "" | | ??????????????????????# #???????????# # " | | ??????????????????????#^ ^############# # = " | | ??????????????????????# ^^ # | | ??????????????????????# ^^ * | | ??????????????????????# [ | | ??????????????????????############ #" [ # | | ???????????????????????????????### # ## | | ???????????????????????????????# | | ???????????????????????????????# | | ???????????????????????????????# * | | ???????????????????????????????# == | | ???????????????????????????????###[[ # ## | | ?????????????????????????????????# #" " | | ?????????????????????????????????# | | ?????????????????????????????????# | | ?????????????????????????????????# ## | | ?????????????????????????????????## ## ######? | +----------------------------------------------------+ Best States ------------- Heat Dissipation 31 Energy Generation 15 Energy Capacity 275 Matter Stores 300 Matter Capacity 300 Sight Range 16 Robot Scan Range 20 Terrain Scan Density 110 Additional Mass Support 9 Armor Coverage 400 Resistance: KI 10 Weapon Shielding 33 Evasion (%) 44 Particle Charging 15 Kinecelleration 30 Offensive Hacking 10 Item Schematics ----------------- None Robot Schematics ------------------ None Fabricated ------------ Nothing Alien Tech Used ----------------- None Achievements -------------- None Challenges ------------ None Game ------ Seed DisruptionFlightMegatreads Manual? 0 Play Time 01:53:51 Cumulative 57.6 hours Start 2024.03.24 @ 10:04:01 End 2024.03.24 @ 16:13:46 Sessions 1 Manual Loads 0 Difficulty Rogue Special Mode None Game No. 47 Rogue 45 Adventurer 0 Explorer 2 Win Type - Total 0 Types 0/0/0/0/0/0/0/0/0 Lore% 17 Gallery% 31 Achievement% 21 Wizard Run 0 Options --------- Layout 1 ASCII 0 Keyboard 0 Movement Mouse Keybinds 0 Fullscreen 2 Font 48/Tamsyn Map View 50x35 Zoom Use 0% Tactical HUD 1 Map Filters NONE Filters NONE Steam 1 RUN: b00f3b43-d446-499b-af40-b42bb826ec13